bitfinex/quotes_ETHUSD_20250219
["timestamp","ask_amount","ask_price","bid_price","bid_amount"]
[1739983159498,4.51412,2708.7,2708.1,4.51349]
[1739983159939,3.69194,2708.6,2708.1,0.8209]
[1739983161132,0.8223,2708.7,2708.1,4.51345]
[1739983161340,1.52506377,2709.1,2708.1,1.64152]
[1739983161495,0.04058652,2708.6,2708.4,3.69219]
[1739983161696,1.52506377,2709.1,2708.1,0.8209]
[1739983161895,3.73238395,2709.0,2708.4,3.69215]
[1739983162124,0.04097395,2709.0,2708.4,3.69213]
[1739983162343,0.04097395,2709.0,2708.5,3.69204]
[1739983162647,0.04097395,2709.0,2708.4,7.38426]
[1739983162803,0.04097395,2709.0,2708.4,4.430556]
[1739983163138,3.73237395,2709.0,2708.4,4.430556]
[1739983163737,3.73237395,2709.0,2708.4,0.738426]
[1739983163941,3.73237395,2709.0,2708.2,3.69239]
[1739983164098,3.73237395,2709.0,2708.3,3.69234]
[1739983164298,3.73237395,2709.0,2708.2,3.69239]
[1739983164510,3.73237395,2709.0,2708.4,3.69212]
[1739983164812,3.73237395,2709.0,2708.5,3.69206]
[1739983165031,0.04097395,2709.0,2708.5,3.69208]
[1739983165539,0.04097395,2709.0,2708.6,4.50061]
[1739983165741,0.04097395,2709.0,2708.7,3.69172]
[1739983165939,0.03783429,2708.9,2708.7,3.69172]
[1739983166158,0.7615,2709.7,2708.6,0.8088]
[1739983166159,3.69113,2709.2,2708.6,0.8088]
[1739983166324,0.04069483,2708.8,2708.6,0.8088]
[1739983166526,3.69113,2709.2,2708.6,1.332731]
[1739983166714,3.73230482,2709.1,2708.6,0.8088]
[1739983166915,0.04103482,2709.1,2708.6,0.8088]
[1739983167161,0.04103482,2709.1,2708.6,4.50072]
[1739983167656,0.04103482,2709.1,2708.6,0.8088]
[1739983167859,0.04103482,2709.1,2708.7,3.69172]
[1739983168045,0.04103482,2709.1,2708.7,8.276552]
[1739983168218,0.04103482,2709.1,2708.7,0.893092]
[1739983168552,3.69116,2709.2,2708.7,0.893092]
[1739983168756,0.04090343,2709.0,2708.6,4.50067]
[1739983168913,3.69116,2709.2,2708.6,4.50067]
[1739983169115,0.04100772,2709.1,2708.7,3.69173]
[1739983169313,7.38235,2709.2,2708.6,0.8088]
[1739983169549,3.73226772,2709.1,2708.6,0.8088]
[1739983169819,0.04100772,2709.1,2708.7,3.69177]
[1739983170024,4.52202,2709.4,2708.7,3.69177]
[1739983170226,5.04887476,2709.4,2708.7,3.69177]
[1739983170456,3.73220628,2709.3,2708.7,3.69177]
[1739983170764,3.69117,2709.2,2708.7,3.69177]
[1739983171059,0.041112,2709.2,2708.7,3.69177]
[1739983171559,3.732272,2709.2,2708.6,4.50072]
[1739983171769,3.69126,2709.1,2708.6,0.8088]
[1739983171953,3.73229482,2709.1,2708.6,0.8088]
[1739983172663,0.04103482,2709.1,2708.7,3.6917]
[1739983173221,0.04103482,2709.1,2708.8,3.69165]
[1739983173660,4.52206,2709.4,2708.8,3.69165]
[1739983173868,0.04093053,2709.0,2708.8,3.69165]
[1739983174175,4.52206,2709.4,2708.8,3.69165]
[1739983174176,3.69113,2709.2,2708.8,0.819215]
[1739983174337,0.04082624,2708.9,2708.7,3.6917]
[1739983174661,3.69135,2709.1,2708.6,0.8088]
[1739983174834,0.47286917,2709.8,2708.4,3.69216]
[1739983174835,3.73239193,2708.8,2708.7,0.8191]
[1739983175035,3.69164,2708.9,2708.5,0.8191]
[1739983175240,3.73083478,2708.8,2708.2,0.8191]
[1739983175439,3.73083478,2708.8,2708.3,0.39837718]
[1739983175838,0.8093,2708.7,2708.2,0.8191]
[1739983176035,0.84830047,2708.7,2707.9,0.8191]
[1739983176285,3.69225,2708.4,2707.9,0.8191]
[1739983176571,0.03876647,2708.3,2707.9,0.8191]
[1739983177180,3.73112647,2708.3,2707.9,0.8191]
[1739983177333,0.03876647,2708.3,2707.7,4.52124]
[1739983177528,0.03876647,2708.3,2707.8,4.145064]
[1739983177729,0.03876647,2708.3,2707.8,0.452124]
[1739983177929,0.03876647,2708.3,2707.8,4.145134]
[1739983178252,0.03876647,2708.3,2707.9,3.69282]
[1739983178452,0.03876647,2708.3,2707.8,0.452124]
[1739983178649,0.8093,2708.7,2707.9,4.50663558]
[1739983178650,3.69203,2708.6,2707.9,4.50663558]
[1739983178835,0.03866213,2708.2,2708.0,3.69275]
[1739983179032,3.69217,2708.5,2707.9,4.50663558]
[1739983179237,0.03855777,2708.1,2707.9,0.81381558]
[1739983179436,3.69222,2708.4,2707.9,4.50669558]
[1739983179675,3.69222,2708.4,2708.0,0.86518496]
[1739983180036,0.03876647,2708.3,2708.0,3.69274]
[1739983180379,3.69203,2708.6,2708.0,3.69274]
[1739983180576,0.03866213,2708.2,2708.0,3.69274]
[1739983180783,3.69203,2708.6,2708.0,3.69274]
[1739983180938,0.03855777,2708.1,2708.0,4.507327]
[1739983181139,3.69203,2708.6,2708.0,4.507327]
[1739983181340,0.03897514,2708.5,2708.0,4.507327]
[1739983181580,3.73109514,2708.5,2708.0,4.507327]
[1739983181778,0.03897514,2708.5,2708.0,4.507327]
[1739983181980,3.69229,2708.4,2707.9,0.7601]
[1739983182182,3.73113141,2708.4,2707.9,0.7601]
[1739983182541,0.03884141,2708.4,2707.9,0.7601]
[1739983182745,8.19178,2708.6,2708.0,3.69273]
[1739983182940,3.73111574,2708.5,2708.0,0.814578]
[1739983183760,0.03894574,2708.5,2708.1,3.69257]
[1739983184045,4.49846,2708.8,2708.1,3.69257]
[1739983184242,4.49846,2708.8,2708.0,0.814578]
[1739983184243,0.03884141,2708.4,2708.3,4.46335]
[1739983184471,0.8067,2709.0,2708.4,3.69214]
[1739983184786,0.8067,2709.0,2708.4,4.138444]
[1739983184983,4.49776,2709.3,2708.5,3.69199]
[1739983185176,3.69134,2709.1,2708.4,0.446314]
[1739983185378,3.69134,2709.1,2708.4,4.138464]
[1739983185677,4.49778,2709.3,2708.4,4.138464]
[1739983185863,4.49778,2709.3,2708.6,3.69183]
[1739983186083,3.69126,2709.1,2708.5,4.1829464]
[1739983186471,3.69116,2709.2,2708.6,3.69184]
[1739983187545,0.8067,2709.3,2708.6,7.38368]
[1739983187741,0.84721807,2709.3,2708.7,0.7782]
[1739983187947,3.69161,2708.9,2708.7,0.7782]
[1739983188276,3.69194,2708.6,2708.5,0.4909464]
[1739983188442,3.69194,2708.6,2708.4,0.7782]
[1739983189778,3.69176,2708.8,2708.4,0.7782]
[1739983190238,3.69196,2708.6,2708.4,0.7782]
[1739983192394,3.69153,2708.9,2708.4,0.7782]
[1739983192761,3.69175,2708.8,2708.4,0.7782]
[1739983193275,3.69167,2708.8,2708.4,0.7782]
[1739983193988,3.69153,2708.9,2708.4,0.7782]
[1739983194287,4.44720447,2709.0,2708.4,1.225264]
[1739983194446,0.75574447,2709.0,2708.4,1.225264]
[1739983194883,3.69122,2709.2,2708.5,3.69201]
[1739983195092,3.69122,2709.2,2708.6,3.69194]
[1739983195292,0.04059862,2709.1,2708.8,0.7556]
[1739983196674,3.69146,2709.0,2708.6,0.7668]
[1739983196876,3.73192862,2709.1,2708.6,0.7668]
[1739983197078,0.03768447,2708.9,2708.6,0.7668]
[1739983197278,3.69156,2708.9,2708.6,0.7668]
[1739983197586,0.03758017,2708.8,2708.6,0.7668]
[1739983197807,0.8061,2709.5,2708.6,4.9493374]
[1739983197972,0.03753465,2708.7,2708.6,4.9493374]
[1739983198171,3.69116,2709.2,2708.6,8.6412074]
[1739983198365,0.03792244,2709.1,2708.6,4.9492774]
[1739983198969,0.03792244,2709.1,2708.6,8.6411574]
[1739983199276,0.03792244,2709.1,2708.7,0.86411574]
[1739983199974,3.72920244,2709.1,2708.7,0.86411574]
[1739983200304,3.72920244,2709.1,2708.6,4.9492774]
[1739983200513,3.69153,2708.9,2708.4,0.7517]
[1739983200814,0.03769774,2708.8,2708.4,0.7517]
[1739983201368,0.8314,2709.0,2708.4,0.7517]
[1739983201680,3.69123,2709.2,2708.4,0.7517]
[1739983201681,0.03766976,2708.9,2708.6,3.69183]
[1739983201878,0.7766,2709.2,2708.7,0.369183]
[1739983202677,0.73220634,2709.7,2708.7,0.369183]
[1739983202678,0.807,2709.4,2708.8,0.758]
[1739983202919,4.49796,2709.4,2708.8,0.758]
[1739983203134,3.69116,2709.2,2708.8,0.758]
[1739983203285,3.69126,2709.1,2708.8,0.758]
[1739983203475,3.69108,2709.3,2708.8,0.758]
[1739983203794,4.49791,2709.4,2708.8,4.44965]
[1739983203995,3.69081,2709.5,2708.9,3.69152]
[1739983204183,3.69088,2709.4,2708.9,3.69152]
[1739983204378,0.8015,2709.6,2708.8,1.202965]
[1739983204379,0.8015,2709.6,2709.1,3.69114]
[1739983204583,4.49209,2709.6,2709.1,3.69114]
[1739983204815,4.49209,2709.6,2709.0,3.69139]
[1739983205015,4.49209,2709.6,2709.0,4.86644568]
[1739983205517,4.49209,2709.6,2709.0,1.17505568]
[1739983205813,3.69092,2709.4,2708.8,4.44961]
[1739983206306,3.69077,2709.5,2708.8,0.758]
[1739983206509,0.8015,2709.6,2709.0,3.69138]
[1739983206695,0.8015,2709.6,2708.9,3.69149]
[1739983206875,3.69072,2709.5,2708.9,0.444949]
[1739983207204,3.69087,2709.4,2708.9,0.444949]
[1739983208015,3.69072,2709.5,2708.9,4.136469]
[1739983208184,3.69079,2709.5,2708.9,4.136469]
[1739983208388,0.8015,2709.6,2709.0,3.69133]
[1739983208583,3.69072,2709.5,2709.0,0.8585869]
[1739983209113,3.69072,2709.5,2708.8,0.758]
[1739983209295,3.69095,2709.4,2708.8,0.758]
[1739983210202,3.69095,2709.4,2708.8,4.44967]
[1739983210912,3.69099,2709.3,2708.8,0.758]
[1739983211311,3.69099,2709.3,2708.8,4.44966]
[1739983212095,0.8015,2709.6,2708.9,3.69145]
[1739983212303,4.49216,2709.6,2708.9,7.38288]
[1739983212509,4.49209,2709.6,2709.0,3.69138]
[1739983212825,3.69086,2709.4,2708.9,3.69151]
[1739983213023,4.49215,2709.6,2708.9,8.31016452]
[1739983213181,4.49215,2709.6,2709.0,3.69139]
[1739983213882,0.8015,2709.6,2709.1,3.72810056]
[1739983214178,4.4513,2710.1,2709.3,3.69098]
[1739983214379,3.69004,2710.0,2709.4,0.8116]
[1739983214580,0.80561357,2710.1,2709.4,7.537946]
[1739983214811,0.04421357,2710.1,2709.4,7.537946]
[1739983214984,7.38055,2709.9,2709.4,6.1816]
[1739983215200,3.69027,2709.9,2709.4,6.1816]
[1739983215415,3.6901,2710.0,2709.4,6.1816]
[1739983215726,1.49686706,2710.3,2709.4,6.1816]
[1739983215727,3.6903,2709.9,2709.4,6.1816]
[1739983216024,3.69033,2709.8,2709.4,6.1816]
[1739983216528,0.04082651,2709.7,2709.4,6.1816]
[1739983216736,0.04082651,2709.7,2709.4,7.168858]
[1739983217023,3.69031,2709.8,2709.4,7.168858]
[1739983217225,3.68983,2710.2,2709.4,7.168858]
[1739983217408,0.04071358,2709.6,2709.5,3.69071]
[1739983217610,0.04071358,2709.6,2709.5,9.06071]
[1739983217776,3.68996,2710.1,2709.5,10.5157408]
[1739983218182,3.68992,2710.1,2709.5,10.5156708]
[1739983218429,3.68983,2710.2,2709.6,3.69054]
[1739983218583,3.68997,2710.1,2709.6,5.37]
[1739983218939,3.68983,2710.2,2709.6,9.06055]
[1739983219102,3.68983,2710.2,2709.7,1.42061908]
[1739983219615,4.45111,2710.3,2709.7,5.11105908]
[1739983219918,3.68977,2710.2,2709.7,1.42061908]
[1739983220235,3.68992,2710.1,2709.8,0.7604]
[1739983220585,3.69011,2710.0,2709.6,6.1249]
[1739983221349,3.69044,2709.7,2709.6,5.37]
[1739983221655,4.51714,2709.7,2709.6,5.37]
[1739983221810,8.20937,2709.1,2708.8,5.37]
[1739983222008,3.69141,2709.0,2708.8,5.37]
[1739983222244,3.69153,2708.9,2708.8,5.37]
[1739983225139,3.6914,2709.0,2708.8,5.37]
[1739983225345,3.69153,2708.9,2708.8,5.37]
[1739983227068,3.69167,2708.8,2708.4,5.37]
[1739983227234,3.69167,2708.8,2708.4,7.61828]
[1739983228533,3.69214,2708.5,2708.1,6.1628]
[1739983228862,3.69222,2708.4,2708.1,6.1628]
[1739983229666,0.8019,2708.6,2708.1,6.1628]
[1739983229869,3.69208,2708.5,2708.1,6.1628]
[1739983230238,3.69223,2708.4,2708.1,5.37]
[1739983230418,3.69208,2708.5,2708.1,5.37]
[1739983230861,7.38425,2708.5,2708.1,5.37]
[1739983231069,3.69246,2708.3,2708.1,5.37]
[1739983231220,3.69265,2708.1,2707.9,6.1898]
[1739983231424,7.38535,2708.1,2707.9,5.37]
[1739983231641,3.69296,2707.9,2707.6,6.184]
[1739983231922,3.69313,2707.8,2707.6,5.37]
[1739983232166,7.38627,2707.8,2707.6,5.37]
[1739983232332,3.69313,2707.8,2707.6,5.37]
[1739983232548,7.38625,2707.8,2707.6,5.37]
[1739983232750,0.06926392,2707.7,2707.6,5.37]
[1739983233146,3.69317,2707.7,2707.1,6.1202]
[1739983233345,3.7626578,2707.7,2707.1,9.81418]
[1739983233545,3.69331,2707.6,2707.1,7.24222201]
[1739983233974,0.0687001,2707.5,2707.1,7.24222201]
[1739983234192,0.0687001,2707.5,2707.2,3.69383]
[1739983234492,0.0684363,2707.4,2707.1,7.24222201]
[1739983234864,3.69318,2707.7,2707.1,10.93620201]
[1739983235047,3.69295,2707.9,2707.2,3.6938]
[1739983235393,0.06862724,2707.6,2707.2,3.6938]
[1739983235560,0.79,2708.1,2707.2,6.89538732]
[1739983235764,0.06853177,2707.5,2707.3,3.69358]
[1739983236063,4.48272,2708.1,2707.4,3.69357]
[1739983236574,3.76154442,2708.0,2707.4,3.69357]
[1739983236772,3.76154442,2708.0,2707.4,4.74877218]
[1739983236976,3.69304,2707.8,2707.4,1.05520218]
[1739983237295,0.06800214,2707.7,2707.3,3.69371]
[1739983237679,0.79,2708.1,2707.1,7.24222201]
[1739983237847,4.48264,2708.1,2707.5,0.8191]
[1739983238055,0.06828847,2708.0,2707.5,0.8191]
[1739983238274,0.06828847,2708.0,2707.5,4.51247]
[1739983238984,3.69271,2708.1,2707.5,4.51247]
[1739983239194,0.06683018,2707.9,2707.5,4.51247]
[1739983239373,0.06692562,2708.0,2707.5,4.51247]
[1739983239574,0.06673473,2707.8,2707.5,4.51247]
[1739983239883,0.06663928,2707.7,2707.5,0.8191]
[1739983240094,0.06663928,2707.7,2707.4,5.37]
[1739983240301,0.7677,2707.8,2707.4,5.37]
[1739983240498,0.06656076,2707.6,2707.4,5.37]
[1739983240698,4.46075,2707.8,2707.4,5.37]
[1739983240998,0.06654696,2707.5,2707.4,5.37]
[1739983241160,0.7677,2707.8,2707.4,5.37]
[1739983241355,0.06654696,2707.5,2707.4,5.37]
[1739983241555,4.46085,2707.8,2707.4,5.37]
[1739983242053,0.06673787,2707.7,2707.4,5.37]
[1739983242255,0.7677,2707.8,2707.4,5.37]
[1739983242455,3.69289,2707.9,2707.4,5.37]
[1739983242456,0.06656076,2707.6,2707.4,5.37]
[1739983242763,3.69277,2708.0,2707.4,6.725534]
[1739983242972,0.0664653,2707.5,2707.4,9.06358]
[1739983243176,4.49823,2708.1,2707.5,3.69343]
[1739983243377,4.46934,2708.3,2707.7,4.47498]
[1739983243598,3.69249,2708.2,2707.7,0.7819]
[1739983243832,3.69271,2708.1,2707.7,0.7819]
[1739983244310,0.06691997,2708.0,2707.7,0.7819]
[1739983244681,3.6925,2708.2,2707.7,0.7819]
[1739983244897,0.06682453,2707.9,2707.7,0.7819]
[1739983245109,3.69263,2708.1,2707.7,0.7819]
[1739983245310,0.86142909,2707.8,2707.4,5.37]
[1739983245476,3.69317,2707.7,2707.4,5.37]
[1739983245834,0.7947,2707.8,2706.9,3.16467182]
[1739983245835,3.69344,2707.5,2707.0,5.37]
[1739983245971,3.69378,2707.3,2706.6,7.63966182]
[1739983246170,3.69371,2707.3,2706.6,3.94507182]
[1739983246376,3.75999114,2707.2,2706.6,3.94507182]
[1739983246575,0.06607114,2707.2,2706.6,8.98628065]
[1739983246801,0.06607114,2707.2,2706.7,3.69453]
[1739983247008,3.69325,2707.7,2707.0,3.69411]
[1739983247176,0.765,2707.7,2707.0,4.45601]
[1739983247376,0.765,2707.7,2707.1,3.69394]
[1739983247603,0.06621964,2707.6,2707.1,3.69394]
[1739983248004,3.75952964,2707.6,2707.0,0.7619]
[1739983248327,4.2119826,2707.6,2707.0,0.7619]
[1739983248537,0.5186726,2707.6,2707.0,4.45595]
[1739983248732,0.06621964,2707.6,2707.1,3.69397]
[1739983249251,0.06621964,2707.6,2707.2,3.69383]
[1739983249459,0.06621964,2707.6,2707.2,9.06377]
[1739983250054,3.6931,2707.8,2707.2,9.06377]
[1739983250250,0.8299,2708.0,2707.3,3.69371]
[1739983250453,3.69296,2707.9,2707.3,3.69371]
[1739983250742,3.69302,2707.9,2707.2,9.06377]
[1739983250903,0.06585732,2707.8,2707.2,10.415741]
[1739983251608,0.06585732,2707.8,2707.2,10.415731]
[1739983251809,0.06585732,2707.8,2707.2,14.109501]
[1739983252115,3.75895732,2707.8,2707.2,10.415731]
[1739983252337,0.06585732,2707.8,2707.3,3.69369]
[1739983252719,3.69311,2707.8,2707.2,10.415731]
[1739983252921,0.06623546,2707.7,2707.2,10.415731]
[1739983253123,0.06623546,2707.7,2707.3,1.0415731]
[1739983253522,0.8299,2708.0,2707.3,1.0415731]
[1739983253523,4.52276,2708.0,2707.3,4.7352031]
[1739983253847,3.69292,2707.9,2707.3,4.7352031]
[1739983254019,0.06634238,2707.9,2707.3,8.4288531]
[1739983254224,0.06634238,2707.9,2707.3,4.7352031]
[1739983254519,0.06634238,2707.9,2707.4,1.01052031]
[1739983254721,0.06634238,2707.9,2707.5,4.48077]
[1739983255042,3.69255,2708.2,2707.5,4.48077]
[1739983255254,0.06638811,2707.8,2707.6,3.69323]
[1739983255440,4.47673,2708.3,2707.6,3.69323]
[1739983255786,3.69266,2708.1,2707.5,9.85076]
[1739983255937,0.06426226,2708.2,2707.5,9.85076]
[1739983256275,4.924453,2708.3,2707.7,3.69314]
[1739983256276,0.06416683,2708.1,2707.7,3.69314]
[1739983256620,4.47667,2708.3,2707.7,3.69314]
[1739983256823,0.06426226,2708.2,2707.7,3.69309]
[1739983257020,0.06426226,2708.2,2707.8,0.369309]
[1739983257225,0.7843,2708.3,2707.7,3.69316]
[1739983257424,0.7843,2708.3,2707.8,3.69301]
[1739983258031,0.0641549,2708.2,2707.9,3.6928]
[1739983258233,0.7843,2708.3,2707.8,3.69302]
[1739983258431,0.06419444,2708.2,2707.7,3.69316]
[1739983259142,0.06419444,2708.2,2707.7,5.047535]
[1739983259349,3.75670444,2708.2,2707.7,1.354375]
[1739983259726,0.06419444,2708.2,2707.7,1.354375]
[1739983260167,0.06419444,2708.2,2707.7,5.047515]
[1739983260366,0.06419444,2708.2,2707.8,3.69292]
[1739983260572,0.06419444,2708.2,2707.7,1.354375]
[1739983260728,4.47666,2708.3,2707.5,6.1574]
[1739983260928,3.69254,2708.2,2707.5,6.1574]
[1739983261123,3.69318,2707.7,2707.5,5.37]
[1739983261327,0.76,2708.1,2706.9,0.75499903]
[1739983261328,0.76,2707.6,2707.0,5.37]
[1739983261587,3.69372,2707.3,2707.0,5.37]
[1739983261872,0.0634355,2707.2,2707.0,5.37]
[1739983262374,0.76,2707.6,2707.0,9.970531]
[1739983262532,0.76,2707.6,2707.1,4.49891]
[1739983262731,0.7972,2708.0,2707.2,3.69377]
[1739983262966,0.7972,2708.0,2707.1,4.4989]
[1739983262967,3.69299,2707.9,2707.1,4.4989]
[1739983263270,0.7972,2708.0,2707.2,3.69383]
[1739983263476,0.20733239,2707.9,2707.1,0.805]
[1739983263771,7.38677,2707.6,2707.0,5.37]
[1739983264173,0.807,2707.5,2707.0,5.37]
[1739983264469,0.807,2707.5,2707.0,9.06405]
[1739983264878,0.807,2707.7,2707.2,3.69381]
[1739983265368,0.06357456,2707.6,2707.2,3.69381]
[1739983265729,0.807,2707.7,2707.2,3.69381]
[1739983265970,0.807,2707.7,2707.0,9.06405]
[1739983265971,0.0634791,2707.5,2707.0,9.06411]
[1739983266165,0.06357456,2707.6,2707.0,5.37]
[1739983266388,3.69365,2707.4,2707.0,5.37]
[1739983266554,0.7873,2707.3,2707.0,5.37]
[1739983266879,7.38783,2707.2,2706.7,5.37]
[1739983267057,3.69408,2707.1,2706.7,5.37]
[1739983267373,3.6942,2707.0,2706.7,5.37]
[1739983268348,3.69385,2707.2,2706.7,5.37]
[1739983268980,0.0632488,2707.1,2706.7,9.06447]
[1739983269353,0.7873,2707.3,2706.8,3.69429]
[1739983269553,0.7759,2707.5,2706.9,4.4484]
[1739983269769,4.46934,2707.5,2706.9,4.4484]
[1739983269940,3.69365,2707.4,2706.9,0.7542]
[1739983270141,3.69365,2707.4,2706.8,3.69438]
[1739983270686,0.7911,2707.0,2706.7,5.37]
[1739983271294,4.48529,2707.0,2706.7,5.37]
[1739983271594,3.69456,2706.7,2706.3,6.1494]
[1739983271789,3.69426,2706.9,2706.1,0.753]
[1739983271955,0.448536,2706.8,2706.1,4.44822]
[1739983272158,0.7911,2707.0,2706.3,6.85962182]
[1739983272343,4.48523,2707.0,2706.3,10.55460182]
[1739983272684,0.06265733,2706.9,2706.3,6.85962182]
[1739983272900,0.06265733,2706.9,2706.6,0.753]
[1739983274485,0.06265733,2706.9,2706.3,6.85974182]
[1739983274774,3.75701733,2706.9,2706.3,3.94797182]
[1739983274982,0.06265733,2706.9,2706.4,3.69485]
[1739983275767,0.06265733,2706.9,2706.4,0.03694514]
[1739983275976,0.06265733,2706.9,2706.3,8.776797]
[1739983276180,0.06265733,2706.9,2706.5,3.6948]
[1739983276347,0.06265733,2706.9,2706.5,3.69474]
[1739983276882,0.06265733,2706.9,2706.6,3.69465]
[1739983277089,0.06265733,2706.9,2706.8,4.50039]
[1739983277383,0.7538,2708.1,2707.4,0.806]
[1739983277582,0.7538,2708.1,2707.4,6.21293152]
[1739983277886,0.7538,2708.3,2707.8,3.69302]
[1739983278086,0.7538,2708.3,2707.8,3.69303]
[1739983278588,0.7538,2708.3,2707.9,3.69289]
[1739983278771,1.0384,2708.5,2707.9,8.15677]
[1739983278972,1.511422,2708.5,2707.9,4.46388]
[1739983279286,0.05192661,2708.4,2707.9,4.46388]
[1739983279504,0.05192661,2708.4,2708.0,3.69273]
[1739983280587,0.05192661,2708.4,2707.9,0.7711]
[1739983280998,0.05192661,2708.4,2707.9,4.46391]
[1739983281151,0.05192661,2708.4,2707.9,0.7711]
[1739983281355,0.05192661,2708.4,2708.0,3.69274]
[1739983281595,0.05192661,2708.4,2708.2,3.69241]
[1739983281863,0.759,2709.0,2708.3,3.69235]
[1739983282061,0.05273659,2708.9,2708.3,9.06235]
[1739983282452,0.05273659,2708.9,2708.3,5.37]
[1739983282854,4.50099,2708.5,2708.3,5.37]
[1739983283051,0.05275484,2708.4,2708.3,5.37]
[1739983283280,3.74500484,2708.4,2707.9,5.37]
[1739983283493,0.05275484,2708.4,2707.9,5.37]
[1739983283695,3.74498484,2708.4,2707.9,5.37]
[1739983284254,0.05275484,2708.4,2707.9,5.37]
[1739983285201,0.8035,2708.3,2707.9,5.37]
[1739983285409,3.69286,2708.0,2707.4,5.37]
[1739983285582,4.49952,2707.9,2707.4,5.37]
[1739983285778,4.55152776,2707.9,2707.4,5.37]
[1739983287408,5.00668054,2707.9,2707.4,5.37]
[1739983287909,1.31376054,2707.9,2707.1,5.37]
[1739983288112,3.69331,2707.6,2707.1,5.37]
[1739983288407,7.38733,2707.4,2707.1,5.37]
[1739983288608,3.69364,2707.4,2706.7,5.37]
[1739983288815,0.05243473,2707.3,2706.7,5.37]
[1739983289016,0.05243473,2707.3,2706.7,9.06446]
[1739983289308,3.74616473,2707.3,2706.8,1.356453]
[1739983289483,0.05243473,2707.3,2706.8,1.356453]
[1739983289681,0.05243473,2707.3,2706.7,5.37]
[1739983289892,4.45697,2707.2,2706.7,5.37]
[1739983290096,8.15092,2707.2,2706.5,10.3119037]
[1739983290284,0.05157745,2707.1,2706.5,10.3119037]
[1739983290807,0.05157745,2707.1,2706.6,3.69461]
[1739983291002,0.05157745,2707.1,2706.5,10.3119037]
[1739983291003,0.05157745,2707.1,2706.7,0.42419779]
[1739983291204,3.74567745,2707.1,2706.5,6.6171537]
[1739983291607,3.74567745,2707.1,2706.5,10.3119537]
[1739983291808,0.05157745,2707.1,2706.7,3.69446]
[1739983292506,0.7631,2707.2,2706.7,3.69446]
[1739983293120,0.05145865,2707.1,2706.5,10.3118237]
[1739983293301,0.05145865,2707.1,2706.6,1.5064287]
[1739983293884,0.05145865,2707.1,2706.6,5.2009887]
[1739983294214,0.05145865,2707.1,2706.7,3.69441]
[1739983294400,0.05145865,2707.1,2706.8,3.6943]
[1739983294606,0.05145865,2707.1,2706.9,3.69421]
[1739983294802,4.44904,2707.5,2706.9,3.69421]
[1739983295001,0.05136317,2707.0,2706.9,3.69421]
[1739983295179,4.44904,2707.5,2706.9,3.69421]
[1739983295379,0.05136317,2707.0,2706.8,3.69437]
[1739983295719,3.69361,2707.4,2706.8,3.69437]
[1739983296012,0.05126768,2706.9,2706.8,3.69437]
[1739983296217,4.44905,2707.5,2706.9,3.69422]
[1739983296398,0.7556,2707.5,2706.9,3.69422]
[1739983296604,3.69364,2707.4,2706.7,3.69441]
[1739983296813,0.7556,2707.5,2706.5,6.6171537]
[1739983296814,3.69392,2707.2,2706.5,6.6171537]
[1739983296981,0.7726,2707.1,2706.5,5.37]
[1739983297180,3.69419,2707.0,2706.5,5.37]
[1739983297412,0.7726,2707.1,2706.5,5.37]
[1739983297614,0.7726,2707.1,2706.7,3.69451]
[1739983298121,0.7927,2707.4,2706.8,3.69438]
[1739983298684,4.48637,2707.4,2706.8,3.69438]
[1739983299318,4.48637,2707.4,2706.7,3.69451]
[1739983299319,3.74496477,2707.3,2706.7,3.69451]
[1739983299525,3.69405,2707.1,2706.5,9.06468]
[1739983299829,3.69405,2707.1,2706.5,5.37]
[1739983300011,3.74468455,2707.0,2706.5,5.37]
[1739983300186,0.05049455,2707.0,2706.5,9.06474]
[1739983300799,3.74462455,2707.0,2706.5,5.37]
[1739983301434,3.69437,2706.9,2706.5,5.37]
[1739983301929,0.05038879,2706.8,2706.5,5.37]
[1739983302307,3.69413,2707.0,2706.5,5.37]
[1739983302612,0.05029327,2706.7,2706.5,5.37]
[1739983302793,3.69413,2707.0,2706.5,5.37]
[1739983302993,0.05019775,2706.6,2706.5,5.37]
[1739983303222,3.69408,2707.1,2706.5,5.37]
[1739983303387,0.05019775,2706.6,2706.5,5.37]
[1739983303588,0.7531,2707.2,2706.6,3.6946]
[1739983303794,4.44698,2707.2,2706.6,3.6946]
[1739983304323,4.44698,2707.2,2706.7,3.69451]
[1739983304324,0.7531,2707.2,2706.7,3.69451]
[1739983304812,0.7531,2707.2,2706.6,3.69465]
[1739983305021,0.7531,2707.2,2706.6,3.69461]
[1739983305324,3.69399,2707.1,2706.6,3.69461]
[1739983305500,7.38806,2707.1,2706.5,5.37]
[1739983305695,3.69399,2707.1,2706.5,10.6961557]
[1739983305925,0.7531,2707.2,2706.5,7.0013757]
[1739983306124,0.7531,2707.2,2706.6,3.69457]
[1739983306432,4.44695,2707.2,2706.6,3.69457]
[1739983306629,0.04871986,2707.1,2706.6,3.69457]
[1739983306829,0.04871986,2707.1,2706.6,5.6088949]
[1739983307636,0.04871986,2707.1,2706.6,5.6088849]
[1739983308152,4.44697,2707.2,2706.6,5.6088849]
[1739983308719,4.44697,2707.2,2706.6,9.3034849]
[1739983309055,4.44697,2707.2,2706.7,3.69453]
[1739983309351,4.44697,2707.2,2706.6,9.3034549]
[1739983309654,4.44697,2707.2,2706.6,5.6088849]
[1739983309850,0.7531,2707.2,2706.8,3.69435]
[1739983310148,0.04689608,2707.1,2706.7,8.48684849]
[1739983310548,0.7531,2707.2,2706.7,4.79234849]
[1739983310848,0.04680058,2707.0,2706.8,3.69426]
[1739983311048,0.7531,2707.2,2706.8,3.69426]
[1739983311257,0.04670508,2706.9,2706.8,3.69426]
[1739983311412,0.7531,2707.2,2706.8,4.54292085]